Cogmind - Beta 14 @@@ ROGUE MODE // 2025.01.10 @ 22:29:57 Player: GDW Result: Destroyed by S-10 Pest with Light Assault Rifle Performance ------------- Evolutions (0) 0 Regions Visited (2) 400 Robots Destroyed (24) 120 Value Destroyed (515) 515 Prototype IDs (0) 0 Alien Tech Used (0) 0 Bonus (0) 0 TOTAL SCORE: 1035 Bonus ------- None Cogmind --------- Core Integrity 0/250 Matter 300/300 Energy 234/250 System Corruption 0% Temperature Cool (48) Movement Walking (120) Location -10/Mines Parts ------- > --- POWER (1) -------- Ion Engine > --- PROPULSION (2) --- Improved Aluminum Leg Improved Aluminum Leg > --- UTILITY (2) ------ Medium Storage Unit Signal Interpreter > --- WEAPON (2) ------- EM Pulse Gun EM Pulse Gun > --- INVENTORY (10) --- Light Ion Engine Improved Aluminum Leg Improved Aluminum Leg Medium Storage Unit Large Storage Unit Sensor Array Seismic Detector Bomb Drone Bay Plasma Cutter Peak State ------------ > --- POWER ------------ Ion Engine > --- PROPULSION ------- Improved Aluminum Leg Improved Aluminum Leg > --- UTILITY ---------- Medium Storage Unit Signal Interpreter > --- WEAPON ----------- EM Pulse Gun EM Pulse Gun > --- INVENTORY -------- Light Ion Engine Improved Aluminum Leg Improved Aluminum Leg Medium Storage Unit Large Storage Unit Sensor Array Seismic Detector Bomb Drone Bay Plasma Cutter [Rating: 11] Favorites ----------- Power Light Ion Engine Engine Light Ion Engine Power Core Light Nuclear Core Propulsion Light Treads Treads Light Treads Leg Improved Aluminum Leg Utility Small Storage Unit Device Seismic Detector Storage Small Storage Unit Processor Signal Interpreter Protection Weapon Shielding Weapon EM Pulse Gun Energy Gun EM Pulse Gun Ballistic Gun Light Assault Rifle Build | -11 -10 -10 ------- Run | Yrd Mat Min Slots Evolved . | . . . Power . | . . . Propulsion . | . . . Utility . | . . . Weapon . | . . . Parts Attached 31 | 8 23 . Power 3 | 1 2 . Engine 2 | 1 1 . Core 1 | . 1 . Reactor . | . . . Propulsion 6 | 2 4 . Treads 2 | 2 . . Leg 4 | . 4 . Wheel . | . . . Hover . | . . . Flight . | . . . Utility 11 | 1 10 . Device 2 | . 2 . Storage 5 | 1 4 . Processor 1 | . 1 . Hackware . | . . . Protection 3 | . 3 . Artifact . | . . . Weapon 11 | 4 7 . Energy Gun 9 | 3 6 . Energy Cannon . | . . . Ballistic Gun 2 | 1 1 . Ballistic Cannon . | . . . Launcher . | . . . Special Weapon . | . . . Impact Weapon . | . . . Slashing Weapon . | . . . Piercing Weapon . | . . . Special Melee Weapon . | . . . Unidentified Prototypes . | . . . Parts Lost 6 | . 6 . Power 1 | . 1 . Propulsion 2 | . 2 . Utility . | . . . Weapon 3 | . 3 . Highest Loss Streak 4 | . 4 . To Critical Strikes . | . . . Average Slot Usage (%) 94 | . 93 100 Engine 12 | . 11 14 Core 1 | . 1 . Treads 18 | . 23 . Leg 9 | . 4 28 Device 3 | . 4 . Storage 14 | . 14 14 Processor 3 | . . 14 Protection 4 | . 6 . Energy Gun 19 | . 17 28 Ballistic Gun 7 | . 9 . Peak Build Rating 11 | 6 10 11 Average Rating 7 | 5 7 10 On Entrance 5 | . 6 10 Naked Turns . | . . . Heaviest Build 30 | 12 30 19 Greatest Support 40 | 40 40 26 Greatest Overweight (x) 1 | . 1 . Average Overweight (x) . | . . . Largest Inventory Capacity 15 | 8 15 10 Average Capacity 8 | 7 8 10 Most Carried 10 | 5 10 10 Average Carried 6 | 4 6 9 Final Capacity 10 | 8 10 10 Final Carried 10 | 5 10 10 Class Distribution -------------------- 100% | Mutant Dominant Class ---------------- Mutant | -10/Materials Mutant | -10/Mines Resources | -11 -10 -10 ----------- Run | Yrd Mat Min Matter Collected 593 | 280 151 162 Remotely . | . . . Salvage Created 716 | 66 472 178 Parts 47 | 2 36 9 Haulers Intercepted . | . . . Recyclers Shooed . | . . . Parts Field Recycled . | . . . Retrieved Matter . | . . . Parts Self-Destructed . | . . . Prevented . | . . . Kills | -11 -10 -10 ------- Run | Yrd Mat Min Combat Hostiles Destroyed 18 | . 13 5 Guns 16 | . 12 4 AOE 2 | . 1 1 Classes Destroyed 6 | 1 5 . Worker 1 | . 1 . Builder 2 | . 2 . Recycler 1 | 1 . . Watcher 2 | . 2 . Swarmer 8 | . 6 2 Grunt 10 | . 7 3 Best Kill Streak 4 | 1 4 2 Combat Bots Only 4 | . 4 2 Max Kills in Single Turn 3 | 1 3 2 Gunslinging 1 | . 1 1 Exploded 1 | . 1 1 Melee . | . . . Uniques/NPCs Destroyed . | . . . Combat | -11 -10 -10 -------- Run | Yrd Mat Min Hostile Shots Fired 140 | . 113 27 Missed 38 | . 27 11 Damage Taken 1161 | 36 922 203 Core 254 | . 219 35 Absorbed by Shields . | . . . Redirected to Shielding 35 | . 35 . Core Remaining (%) 100 | 100 . . Volleys Fired 79 | 1 65 13 Largest 2 | 2 2 2 Hottest 80 | 80 80 80 Shots Fired 138 | 2 110 26 Gun 138 | 2 110 26 Cannon . | . . . Launcher . | . . . Special . | . . . Kinetic 52 | . 52 . Thermal . | . . . Explosive . | . . . Electromagnetic 86 | 2 58 26 Robot Hit Streak 10 | 2 10 4 Robot Miss Streak 4 | . 4 4 Penetration Max . | . . . Secondary Targets 2 | . 1 1 Max Gunslinging Chain 1 | . 1 1 Shots Hit Robots 77 | 2 61 14 Core Hits 33 | 1 24 8 Critical Kills . | . . . Critical Parts Destroyed . | . . . Critical Strikes . | . . . Melee Attacks . | . . . Impact . | . . . Slashing . | . . . Piercing . | . . . Sneak Attacks . | . . . Combat Hostiles . | . . . Follow-up Attacks . | . . . Damage Inflicted 1550 | 49 1232 269 Guns 945 | 13 759 173 Cannons . | . . . Explosions 605 | 36 473 96 Melee . | . . . Ramming . | . . . Kinetic 219 | . 219 . Thermal 211 | 36 79 96 Explosive 394 | . 394 . Electromagnetic 726 | 13 540 173 Impact . | . . . Slashing . | . . . Piercing . | . . . Highest Corruption . | . . . Average Corruption . | . . . Corruption Purged . | . . . Corruption Blocked . | . . . Overload Shots . | . . . Overflow Damage 43 | . 43 . Projectiles . | . . . Explosions 43 | . 43 . Melee . | . . . Knockbacks . | . . . Impact . | . . . Kinetic . | . . . Secondary . | . . . Self-Inflicted Damage 81 | 37 44 . Shots 3 | 1 2 . Rammed 1 | . 1 . Targets Rammed 1 | . 1 . Kicked . | . . . Crushed . | . . . Highest Temperature 198 | 30 198 99 Average Temperature 49 | 21 52 43 Received Heat Transfer 510 | . 411 99 Siege Activations . | . . . Robots Corrupted . | . . . Combat Hostiles . | . . . Parts Fried 2 | . . 2 Impact Corruptions . | . . . Robots Melted . | . . . Combat Hostiles . | . . . Parts Melted . | . . . Heat Transferred 200 | 50 50 100 Parts Sabotaged . | . . . Parts Stolen . | . . . Parts Stripped . | . . . Power Chain Reactions 4 | 1 2 1 Alert | -11 -10 -10 ------- Run | Yrd Mat Min Peak Influence 201 | 5 127 201 Initial 45 | . . 45 Average 47 | 3 45 128 Maximum Alert Level 1 | . . 1 Low Security (%) 99 | 100 100 99 Level 1 . | . . . Level 2 . | . . . Level 3 . | . . . Level 4 . | . . . Level 5 . | . . . High Security . | . . . Max Security . | . . . Squads Dispatched 3 | . 3 . Investigation 2 | . 2 . Extermination . | . . . Reinforcement 1 | . 1 . Assault . | . . . Garrison . | . . . Intercept . | . . . Searches Triggered . | . . . Construction Impeded . | . . . Haulers Reinforced . | . . . Active Scanning Responses . | . . . Cargo Convoy Interrupts . | . . . Stealth | -11 -10 -10 --------- Run | Yrd Mat Min Distress Signals 3 | . 3 . Communications Jammed . | . . . Distress Signals . | . . . Times Spotted 30 | . 23 7 Peak Tracking Total 5 | . 5 3 Tactical Retreats 2 | . . 2 Traps | -11 -10 -10 ------- Run | Yrd Mat Min Traps Triggered 2 | . 2 . Indirectly . | . . . Trap Hack Attempts . | . . . Triggered . | . . . Disarmed . | . . . Reprogrammed . | . . . Reused . | . . . Traps Extracted . | . . . Installed . | . . . Triggered . | . . . Machines | -11 -10 -10 ---------- Run | Yrd Mat Min Machines Disabled 2 | . 2 . Max in Single Turn 1 | . 1 . Machines Repaired . | . . . Machines Dismantled . | . . . Machines Sabotaged . | . . . Overloaded Fab Kills . | . . . Hacking | -11 -10 -10 --------- Run | Yrd Mat Min Machines Accessed 4 | . 3 1 Terminals 3 | . 3 . Fabricators . | . . . Repair Stations . | . . . Recycling Units . | . . . Scanalyzers . | . . . Garrison Access . | . . . Total Hacks 11 | . 10 1 Successful 7 | . 6 1 Failed 4 | . 4 . Catastrophic . | . . . Database Lockouts . | . . . Manual . | . . . Terminals 10 | . 10 . Fabricators . | . . . Repair Stations . | . . . Recycling Units . | . . . Scanalyzers . | . . . Garrison Access . | . . . Terminal Hacks 7 | . 6 1 Record 2 | . 2 . Open Door 1 | . . 1 Emergency Access Points 1 | . 1 . Alert Level 1 | . 1 . Unreport Threat 1 | . 1 . Transport Status 1 | . 1 . Fabricator Hacks . | . . . Repair Station Hacks . | . . . Recycling Unit Hacks . | . . . Scanalyzer . | . . . Garrison Access Hacks . | . . . Unauthorized Hacks . | . . . Terminals . | . . . Fabricators . | . . . Repair Stations . | . . . Recycling Units . | . . . Scanalyzers . | . . . Garrison Access . | . . . Data Cores Recovered . | . . . Used . | . . . Hacking Detections 2 | . 2 . Full Trace Events 1 | . 1 . Feedback Events . | . . . Feedback Blocked . | . . . Robot Schematics Acquired . | . . . Robots Built . | . . . Authchips . | . . . Time . | . . . Total Robot Build Rating . | . . . Part Schematics Acquired . | . . . Parts Built . | . . . Authchips . | . . . Time . | . . . Total Part Build Rating . | . . . Parts Repaired . | . . . Time . | . . . Parts Recycled . | . . . Recycled Matter . | . . . Retrieved Matter . | . . . Retrieved Components . | . . . Parts Scanalyzed . | . . . Part Schematics Acquired . | . . . Parts Damaged . | . . . Bothacking | -11 -10 -10 ------------ Run | Yrd Mat Min Used RIF Installer . | . . . Robots Hacked . | . . . Non-combat . | . . . Combat . | . . . Robot Hacks Applied . | . . . Relay Couplers Released . | . . . Fabnet Peak Effective % . | . . . Robots Rewired . | . . . Allies Hacked . | . . . Hacks Repelled . | . . . Allies | -11 -10 -10 -------- Run | Yrd Mat Min Total Allies . | . . . Largest Group . | . . . Highest-Rated Group . | . . . Highest-Rated Ally . | . . . Total Orders . | . . . Ally Attacks . | . . . Total Damage . | . . . Kills . | . . . Allies Corrupted . | . . . Allies Melted . | . . . Intel | -11 -10 -10 ------- Run | Yrd Mat Min Robot Analysis Total . | . . . Derelict Logs Recovered 2 | . . 2 Drone Launches . | . . . Drone Recoveries . | . . . Exploration | -11 -10 -10 ------------- Run | Yrd Mat Min Turns Passed 1867 | 502 1077 288 Spaces Moved 932 | 176 553 203 Core 4 | 4 . . Treads 636 | 172 464 . Legs 292 | . 89 203 Wheels . | . . . Hover . | . . . Flight . | . . . Fastest Speed 50 | 50 120 120 Average Speed 147 | 157 153 120 Slowest Speed 190 | 160 190 120 Overloaded Moves . | . . . Propulsion Burnouts . | . . . Robots Hopped . | . . . Cave-ins Triggered . | . . . Exploration Rate (%) 41 | 17 66 41 Regions Visited 2 Branch Regions 1 Pre-discovered Areas 1 | . . 1 Known Exits Taken 1 | . 1 . Unknown Exits Taken 1 | 1 . . Scrap Searched . | . . . Spaces Dug . | . . . Terrain Destroyed 34 | 2 24 8 Melee . | . . . Projectile . | . . . AOE 34 | 2 24 8 Terrain Rammed . | . . . Walls Destroyed . | . . . Machines Disabled . | . . . Actions | -11 -10 -10 --------- Run | Yrd Mat Min Total 1301 | 395 683 223 Wait 215 | 206 7 2 Move 930 | 175 552 203 Hop . | . . . Pick Up 24 | 5 17 2 Fast Attach 12 | 6 6 . Attach 4 | . 4 . Detach 1 | . 1 . Swap 15 | 2 13 . Drop 20 | . 17 3 Fire 79 | 1 65 13 Melee . | . . . Ram . | . . . Kick . | . . . Crush 1 | . 1 . Escape Stasis . | . . . Rewire . | . . . Trap . | . . . Miscellaneous . | . . . Route ------- -11/Scrapyard -10/Materials -10/Mines (discovered 1 exit: *Mat) History --------- Turn | Location | Event 3 | -11/Scrapyard | Discovered new exit (range 15) 503 | -11/Scrapyard | Entered Materials 504 | -10/Materials | Build established: Mutant 844 | -10/Materials | Discovered new exit (range 16) 1369 | -10/Materials | Core integrity fell below 50% 1420 | -10/Materials | Lost 4 parts (1p1n2w) 1430 | -10/Materials | Core integrity fell below 20% 1579 | -10/Materials | Identified exit to Mines 1580 | -10/Materials | Entered Mines 1609 | -10/Mines | Learned location of Recycling (-9) 1680 | -10/Mines | Discovered new exit (range 12) 1713 | -10/Mines | Identified exit to Materials 1720 | -10/Mines | Found the Drone Emporium 1731 | -10/Mines | Found Prototype Device 1755 | -10/Mines | Learned location of 1 exit from Materials 1868 | -10/Mines | Destroyed by S-10 Pest with Light Assault Rifle Last Messages --------------- Sealed Doors opened. 01720_ QE-Y5M(g): "Well that was anticlimactic. Heard you outside and thought you were from the Merchants Guild. I haven't even officially opened my Drone Emporium yet but am totally ready to tell them where they can shove that C&D." 01722_ QE-Y5M(g): "I'm a fan of the free market. Free drones for all! No strings attached!" 01726_ Dropped Power Shielding. 01729_ Dropped Med. Matter Pod. 01730_ Extracted 61 matter. 01731_ Acquired Prototype Device. 01732_ Dropped Lrg. Storage Unit. 01735_ Acquired Lrg. Storage Unit. 01755_ Acquired derelict log, extracted data. Data stored: Materials exits (x1). 01866_ S-10 Pest destroyed. 01866_ Switching to secondary target: S-10 Pest. 01866_ S-10 Pest destroyed. Map ----- +----------------------------------------------------+ | | | | | | | | | | | | | | | | | | | ?????????????????????????????????????????????????? | | ?????????????????????????????????????????????????? | | ?????????????????????####????????????????????????? | | ???????????????????### ##???##########?????????? | | ??????????????????## #???# #??? | | ??????????????????# #???# ####### #??? | | ####??????????????# ##### #????????????????? | | ##??????????????# ## #????????????????? | | ###????????????## ## #????????????????? | | ##????????????## ### ####????????????????? | | ##????????????###??# #???????????????????? | | ##????????????????# #???????????????????? | | #### #######??????????# #???????????????????? | | #??## #??????????# #???????????????????? | | #???# ##### #??????????# #???????????????????? | | #???#####???# ############ ##??????????????????? | | #???????????# @ ##?????????????????? | | #???????????# #?????????????????? | | #???????????########## #?????????????????? | | #????????????????????# #?????????????????? | | ##????????????????????## #?????????????????? | | ???????????????????????## s#????????????????? | | ????????????????????????# %=#???????????????? | | ????????????????????????# t%[ #??????????????? | | ????????????????????????## = ?????????????? | | ?????????????????????????## ???????????? | | ??????????????????????????# ??????????? | | ??????????????????????????# ?????????? | | ?????????????????????????? ??????????? | | #?????????########???????? ??????????? | | ######## ??????? ???????????? | | $ ?????????### ?????????????? | | #???????????????????# ???????????????? | | ##########???????????????????? ??????????????????? | | ?????????????????????????????????????????????????? | | ?????????????????????????????????????????????????? | | ?????????????????????????????????????????????????? | | ?????????????????????????????????????????????????? | | ?????????????????????????????????????????????????? | | ?????????????????????????????????????????????????? | | ?????????????????????????????????????????????????? | +----------------------------------------------------+ Best States ------------- Heat Dissipation 25 Energy Generation 14 Energy Capacity 450 Matter Stores 300 Matter Capacity 300 Sight Range 16 Robot Scan Range 14 Terrain Scan Density 10 Power Shielding 33 Weapon Shielding 33 Evasion (%) 55 Recoil Reduction 2 Item Schematics ----------------- None Robot Schematics ------------------ None Fabricated ------------ Nothing Alien Tech Used ----------------- None Achievements -------------- None Challenges ------------ None Game ------ Seed SwarmClaymoresStick Manual? 0 Play Time 00:42:25 Cumulative 8.3 hours Start 2025.01.10 @ 21:41:16 End 2025.01.10 @ 22:29:57 Sessions 2 Manual Loads 0 Difficulty Rogue Special Mode None Game No. 7 Rogue 7 Adventurer 0 Explorer 0 Win Type - Total 0 Types 0/0/0/0/0/0/0/0/0 Lore% 4 Gallery% 13 Achievement% 12 Wizard Run 0 Options --------- Layout 2 ASCII 0 Keyboard 0 Movement Mouse Keybinds 0 Fullscreen 1 Font 24/Smallcaps Map View 50x44 Zoom Use 0% Tactical HUD 1 Map Filters NONE Filters NONE Steam 1 RUN: 61700b11-e83b-4882-9e9b-6eb3d58fe7f8